{"text_format":"1","workbook":"xlsx","n_sheets":4,"sheets":["Клиенты","Магазины","СВОДНЫЙ","ГородХ"],"not_rendered":{"charts":0,"images":0,"macros":1,"external_links":0,"defined_names":0,"comments":0,"pivot_tables":0},"unopened":[],"bounds":{"document_bytes":16777216,"sheet_cells":100000,"rows_first":2000,"rows_last":500,"rows_between":2000,"halvings":0,"cell_chars":16384,"cell_head_chars":4096},"cells_cut":0,"cells_raw":0,"read":"whole","date_system":"1900"}

{"sheet":"Клиенты","index":0,"n_rows":115,"n_cols":13,"rows_kept":115,"cut":false,"hidden":false,"merged":[]}
[]
[null,"ЯНВ - &CM_RTT01&"]
[null,"Валовый оборот"]
["Заказчик","Кл1","Кл2","Кл3","Кл4","Кл5","Кл6","Кл7","Кл8","Кл9","Общий результат"]
["Иерархия продуктов","RUB","RUB","RUB","RUB","RUB","RUB","RUB",null,"RUB","RUB"]
["          Общий результат",{"$f":"SUM(B7:B115)","v":3},{"$f":"SUM(C7:C115)","v":0},93,6,16,7,12,null,0,{"$f":"SUM(B6:J6)","v":137}]
["Разрыхлитель теста",null,null,null,null,null,null,null,null,null,{"$f":"SUM(B7:J7)","v":0}]
["            1-84-001001 Разрыхлитель теста,10г",1,null,5,null,null,null,11,null,null,{"$f":"SUM(B8:J8)","v":17},null,{"$f":"CHAR(160)","v":" "}]
["Дрожжи",null,null,null,null,null,null,null,null,null,0]
["              1-84-001080 Дрожжи сух.мгновеннодейств. 80 шт.",null,null,2,6,null,null,null,null,null,8]
["Ванильный сахар",null,null,null,null,null,null,null,null,null,0]
["              1-84-001010 Сахар Ванильный 8г(100шт)",null,null,null,null,5,null,null,null,null,5]
["              1-84-001208 Сахар ванильный,8г 60x5",null,null,null,null,null,7,null,null,null,7]
["              1-84-010100 Сахар с натуральной ванилью 15г",null,null,null,null,null,null,1,null,null,1]
["Желе для торта",null,null,null,null,null,null,null,null,null,0]
["              1-84-001004 Желе для торта бесцветное,8г",null,null,12,null,null,null,null,null,null,12]
["              1-84-001005 Желе для торта красное,8г",null,null,null,null,3,null,null,null,null,3]
["Загуститель сливок",null,null,null,null,null,null,null,null,null,0]
["              1-84-001002 Загуститель для сливок,8г",null,null,null,null,8,null,null,null,null,8]
["Сахар с корицей",null,null,null,null,null,null,null,null,null,0]
["              1-84-001011 Сахар с корицей 40г",null,null,41,null,null,null,null,null,null,41]
["Взбитые сливки",null,null,null,null,null,null,null,null,null,0]
["              1-84-001003 Смесь для взбитых сливок 48г",2,null,null,null,null,null,null,null,null,2]
["Творопыш",null,null,null,null,null,null,null,null,null,0]
["              1-84-002003 Смесь \"Творопыш\",60г",null,null,null,null,null,null,null,null,null,0]
["Крем для торта",null,null,null,null,null,null,null,null,null,0]
["              1-84-002001 Крем для торта \"Ванильный\",50г",null,null,null,null,null,null,null,null,null,0]
["              1-84-002002 Крем для торта \"Шоколадный\",55г",null,null,null,null,null,null,null,null,null,0]
["Желатин молотый",null,null,null,null,null,null,null,null,null,0]
["              1-84-001006 Желатин пищевой,10г",null,null,null,null,null,null,null,null,null,0]
["              1-84-001013 Желатин 30г",null,null,null,null,null,null,null,null,null,0]
["              1-84-001206 Желатин пищевой,10гх5шт. (33уп)",null,null,null,null,null,null,null,null,null,0]
["Сода пищевая",null,null,null,null,null,null,null,null,null,0]
["              1-84-001007 Сода пищевая,50г",null,null,null,null,null,null,null,null,null,0]
["010001510000010000",null,null,null,null,null,null,null,null,null,0]
["              1-84-001012 Посыпка цветная 80г",null,null,null,null,null,null,null,null,null,0]
["              1-84-091093 Посыпка Шоколадная 80г",null,null,null,null,null,null,null,null,null,0]
["010001510000050000",null,null,null,null,null,null,null,null,null,0]
["              1-84-001009 Сахарная пудра \"Ваниль\" 80г",null,null,null,null,null,null,null,null,null,0]
["010001510000060000",null,null,null,null,null,null,null,null,null,0]
["              1-84-003053 Карандаши сахарные 76г",null,null,null,null,null,null,null,null,null,0]
["010001520000010000",null,null,null,null,null,null,null,null,null,0]
["              1-84-003051 Глазурь со вкусом лимона,100г",null,null,null,null,null,null,null,null,null,0]
["              1-84-003052 Глазурь со вкусом марципана,100г",null,null,null,null,null,null,null,null,null,0]
["010001520000020000",null,null,null,null,null,null,null,null,null,0]
["              1-84-090804 Глазурь темный шоколад 100г",null,null,null,null,null,null,null,null,null,0]
["              1-84-091142 Глазурь темный и белый шоколад 100г",null,null,null,null,null,null,null,null,null,0]
["Смесь для пудинга",null,null,null,null,null,null,null,null,null,0]
["              1-84-004001 Пудинг ванильный,40г",null,null,null,null,null,null,null,null,null,0]
["              1-84-004002 Пудинг шоколадный,50г",null,null,null,null,null,null,null,null,null,0]
["              1-84-004003 Пудинг сливочный,40г",null,null,null,null,null,null,null,null,null,0]
["              1-84-004006 Пудинг карамельный,40г",null,null,null,null,null,null,null,null,null,0]
["Желе со вкусом ягод",null,null,null,null,null,null,null,null,null,0]
["              1-84-005001 Желе со вкусом вишни,45г",null,null,null,null,null,null,null,null,null,0]
["              1-84-005002 Желе со вкусом апельсина,45г",null,null,null,null,null,null,null,null,null,0]
["              1-84-005003 Желе со вкусом клубники,45г",null,null,null,null,null,null,null,null,null,0]
["              1-84-005004 Желе со вкусом малины,45г",null,null,null,null,null,null,null,null,null,0]
["              1-84-005005 Желе со вкусом лесной ягоды,45г",null,null,null,null,null,null,null,null,null,0]
["              1-84-005006 Желе со вкусом лимона,45г",null,null,null,null,null,null,null,null,null,0]
["Кисель",null,null,null,null,null,null,null,null,null,0]
["              1-84-006001 Кисель со вкусом вишни,30г",null,null,null,null,null,null,null,null,null,0]
["              1-84-006002 Кисель со вкусом малины,30г",null,null,null,null,null,null,null,null,null,0]
["              1-84-006003 Кисель со вкусом клубники,30г",null,null,null,null,null,null,null,null,null,0]
["              1-84-007001 Кисель \"Ягодник\" клубника,70г",null,null,null,null,null,null,null,null,null,0]
["              1-84-007002 Кисель \"Ягодник\" лесная ягода,70г",null,null,null,null,null,null,null,null,null,0]
["              1-84-007003 Кисель \"Ягодник\" вишня,70г",null,null,null,null,null,null,null,null,null,0]
["              1-84-007004 Кисель \"Ягодник\" малина,70г",null,null,null,null,null,null,null,null,null,0]
["Фирменн. десерт/мусс",null,null,null,null,null,null,null,null,null,0]
["              1-84-047200 Крем Тирамису 70г",null,null,null,null,null,null,null,null,null,0]
["Прочие средства для",null,null,null,null,null,null,null,null,null,0]
["              1-84-008004 Кислота лимонная пищевая,8г",null,null,null,null,null,null,null,null,null,0]
["              1-84-008005 Кислота лимонная пищевая 50г",null,null,null,null,null,null,null,null,null,{"$f":"SUM(B72:J72)","v":0}]
["Виталис Мюсли до 500",null,null,null,null,null,null,null,null,null,0]
["              1-84-006420 Мюсли фруктовые без сахара,375г",null,null,null,null,null,null,null,null,null,0]
["              1-84-006421 Мюсли шоколадные,375г",null,null,null,null,null,null,null,null,null,0]
["              1-84-006424 Мюсли хрустящие с шоколадом,375г",null,null,null,null,null,null,null,null,null,0]
["              1-84-006425 Мюсли хрустящие,375г",null,null,null,null,null,null,null,null,null,0]
["              1-84-006428 Мюсли хрустящие с миндалем,375г",null,null,null,null,null,null,null,null,null,0]
["              1-84-006446 Мюсли хрустящие медовые,375г",null,null,null,null,null,null,null,null,null,0]
["Ристоранте",null,null,null,null,null,null,null,null,null,0]
["              1-20-810100 Пицца Ристоранте Кальцоне Специале,290г",null,null,null,null,null,null,null,null,null,0]
["              1-20-810200 Пицца Ристоранте Сыр и Помидоры 355г",null,null,null,null,null,null,null,null,null,0]
["              1-20-818900 Пицца Ристоранте 4 вида сыра,340г",null,null,null,null,null,null,null,null,null,0]
["              1-20-819000 Пицца Ристоранте с салями,320г",null,null,null,null,null,null,null,null,null,0]
["              1-20-819100 Пицца Ристоранте с шампиньонами,365г",null,null,null,null,null,null,null,null,null,0]
["              1-20-819200 Пицца Ристоранте с ветчиной,330г",null,null,null,null,null,null,null,null,null,0]
["              1-20-819500 Пицца Ристоранте Специале,330г",null,null,null,null,null,null,null,null,null,0]
["              1-20-819600 Пицца Ристоранте Гавайи,355г",null,null,null,null,null,null,null,null,null,0]
["              1-20-819800 Пицца Ристоранте Моццарелла,335г",null,null,null,null,null,null,null,null,null,0]
["              1-20-819900 Пицца Ристоранте вегетарианская,385г",null,null,null,null,null,null,null,null,null,0]
["              1-20-820200 Пицца Ристоранте Пепперони Салями 320г",null,null,null,null,null,null,null,null,null,0]
["              1-20-820300 Пицца Ристоранте Болоньезе 375г",null,null,null,null,null,null,null,null,null,0]
["              1-20-834000 Пицца Ристоранте Пиккола салями 280г",null,null,null,null,null,null,null,null,null,0]
["              1-20-834200 Пицца Ристоранте Пиккола Моцарелла,310г",null,null,null,null,null,null,null,null,null,0]
["Каса ди Мама",null,null,null,null,null,null,null,null,null,0]
["              1-20-205100 Пицца Каса ди Мама \"Ветчина-Грибы\"380г",null,null,null,null,null,null,null,null,null,0]
["              1-20-205200 Пицца Каса ди Мама \"4вида сыра\"395г",null,null,null,null,null,null,null,null,null,0]
["              1-20-205300 Пицца Каса ди Мама \"Специале\" 405г",null,null,null,null,null,null,null,null,null,0]
["              1-20-205400 Пицца Каса ди Мама\"Салями\"380г",null,null,33,null,null,null,null,null,null,33]
["026001090000021000",null,null,null,null,null,null,null,null,null,0]
["              1-60-901204 Пицца-чка с сыром 245г",null,null,null,null,null,null,null,null,null,0]
["              1-60-901205 Пицца-чка с салями 255г",null,null,null,null,null,null,null,null,null,0]
["              1-60-901208 Пицца-чка с шампиньонами 285г",null,null,null,null,null,null,null,null,null,0]
["Фруктовый йогурт",null,null,null,null,null,null,null,null,null,0]
["              1-84-000116 Максифрут лег. 0,1% 4х100 Клуб/Персик",null,null,null,null,null,null,null,null,null,0]
["              1-84-000117 Максифрут лег. 0,1% 4х100 Мал/Абр/Манго",null,null,null,null,null,null,null,null,null,0]
["              1-84-000118 Максифрут лег. 0,1% 4х100 Клуб/Черника",null,null,null,null,null,null,null,null,null,0]
["              1-84-000136 Максифрут 2,7% 4х100г Клуб/Абрикос-Манго",null,null,null,null,null,null,null,null,null,0]
["              1-84-000137 Максифрут 2,7% 4*100 Вишня/Персик",null,null,null,null,null,null,null,null,null,0]
["              1-84-000146 Максифрут Экстра4,5% 4*100 Клуб/Яблоко",null,null,null,null,null,null,null,null,null,0]
["              1-84-000147 Максифрут Экстра4,5% 4*100 Вишня/Персик",null,null,null,null,null,null,null,null,null,0]
["              1-84-000148 Максифрут Экстра4,5% 4*100 Клуб/Абрикос",null,null,null,null,null,null,null,null,null,0]
["              1-84-000156 Максифрут Люкс 8,0% 4х100 Клуб/Персик",null,null,null,null,null,null,null,null,null,0]
["              1-84-000157 Максифрут Люкс 8,0% 4х100 Малина/Абрикос",null,null,null,null,null,null,null,null,null,0]
["              1-84-000158 Максифрут Люкс 8,0% 4х100 Клуб/Нектарин",null,null,null,null,null,null,null,null,null,0]

{"sheet":"Магазины","index":1,"n_rows":137,"n_cols":13,"rows_kept":137,"cut":false,"hidden":false,"merged":[]}
[]
[null,"ЯНВ - &CM_RTT01&"]
[null,"Валовый оборот"]
["Получатель материала","Мг1","Мг2","Мг3","Мг4","Мг5","Мг6","Мг7","Мг8","Мг9","Мг10","Мг11","Общий результат"]
["Иерархия продуктов","RUB","RUB","RUB","RUB","RUB","RUB","RUB","RUB","RUB","RUB","RUB","RUB"]
["Общий результат",{"$f":"SUM(B7:B137)","v":1},{"$f":"SUM(C7:C137)","v":0},10,125,4,8,50,0,2,0,0,{"$f":"SUM(B6:L6)","v":200}]
["Разрыхлитель теста",null,null,null,null,null,null,null,null,null,null,null,{"$f":"SUM(B7:L7)","v":0}]
["              1-84-001001 Разрыхлитель теста,10г",1,null,1,null,null,null,null,null,null,null,null,2]
["              1-84-001201 Разрыхлитель теста,10гх5шт. (60)",null,null,null,null,1,null,null,null,null,null,null,1]
["              1-84-071734 Разрыхлитель теста,10гх5шт.Юнит",null,null,1,null,null,null,null,null,null,null,null,1]
["Дрожжи",null,null,null,null,null,null,null,null,null,null,null,0]
["              1-84-001080 Дрожжи сух.мгновеннодейств. 80 шт.",null,null,null,null,null,null,2,null,null,null,null,2]
["              1-84-071080 Дрожжи хлебопекарные сухие,7гх5шт.",null,null,2,null,null,null,null,null,2,null,null,4]
["Ванильный сахар",null,null,null,null,null,null,null,null,null,null,null,0]
["              1-84-001010 Сахар Ванильный 8г(100шт)",null,null,null,null,null,null,null,null,null,null,null,0]
["              1-84-001208 Сахар ванильный,8г 60x5",null,null,3,null,3,null,null,null,null,null,null,6]
["              1-84-001210 Сахар с натуральной Ванилью 15г*2шт",null,null,null,null,null,null,3,null,null,null,null,3]
["              1-84-010100 Сахар с натуральной ванилью 15г",null,null,null,3,null,null,null,null,null,null,null,3]
["              1-84-071733 Сахар ванильный,8гх5 шт.Юнит",null,null,null,3,null,8,null,null,null,null,null,11]
["Желе для торта",null,null,null,null,null,null,null,null,null,null,null,0]
["              1-84-001004 Желе для торта бесцветное,8г",null,null,null,null,null,null,null,null,null,null,null,0]
["              1-84-071104 Желе для торта бесцветное,8гх5шт.",null,null,null,null,null,null,null,null,null,null,null,0]
["Загуститель сливок",null,null,null,null,null,null,null,null,null,null,null,0]
["              1-84-001002 Загуститель для сливок,8г",null,null,null,null,null,null,null,null,null,null,null,0]
["              1-84-077358 Загуститель для сливок,8гх5 шт.Юнит",null,null,null,null,null,null,null,null,null,null,null,0]
["Сахар с корицей",null,null,null,null,null,null,null,null,null,null,null,0]
["              1-84-001011 Сахар с корицей 40г",null,null,null,null,null,null,null,null,null,null,null,0]
["Взбитые сливки",null,null,null,null,null,null,null,null,null,null,null,0]
["              1-84-001003 Смесь для взбитых сливок 48г",null,null,null,null,null,null,null,null,null,null,null,0]
["              1-84-072101 Смесь для взбитых сливок,48гх5шт.",null,null,null,42,null,null,null,null,null,null,null,42]
["Творопыш",null,null,null,null,null,null,45,null,null,null,null,45]
["              1-84-002003 Смесь \"Творопыш\",60г",null,null,null,null,null,null,null,null,null,null,null,0]
["              1-84-072003 Смесь \"Творопыш\",60гх5шт.",null,null,null,null,null,null,null,null,null,null,null,0]
["Крем для торта",null,null,null,null,null,null,null,null,null,null,null,0]
["              1-84-002001 Крем для торта \"Ванильный\",50г",null,null,null,77,null,null,null,null,null,null,null,77]
["              1-84-002002 Крем для торта \"Шоколадный\",55г",null,null,null,null,null,null,null,null,null,null,null,0]
["              1-84-072001 Крем для торта ванильный,50гх5шт.",null,null,null,null,null,null,null,null,null,null,null,0]
["              1-84-072002 Крем для торта шоколадный,55гх5шт.",null,null,null,null,null,null,null,null,null,null,null,0]
["Желатин молотый",null,null,null,null,null,null,null,null,null,null,null,0]
["              1-84-001006 Желатин пищевой,10г",null,null,null,null,null,null,null,null,null,null,null,0]
["              1-84-001013 Желатин 30г",null,null,null,null,null,null,null,null,null,null,null,0]
["              1-84-001213 Желатин 30гх2",null,null,null,null,null,null,null,null,null,null,null,0]
["              1-84-077740 Желатин пищевой,10гх5шт Юнит",null,null,null,null,null,null,null,null,null,null,null,0]
["Сода пищевая",null,null,null,null,null,null,null,null,null,null,null,0]
["              1-84-001007 Сода пищевая,50г",null,null,null,null,null,null,null,null,null,null,null,0]
["              1-84-071007 Сода пищевая,50гх5шт.",null,null,null,null,null,null,null,null,null,null,null,0]
["010001510000010000",null,null,null,null,null,null,null,null,null,null,null,0]
["              1-84-001012 Посыпка цветная 80г",null,null,null,null,null,null,null,null,null,null,null,0]
["              1-84-091093 Посыпка Шоколадная 80г",null,null,null,null,null,null,null,null,null,null,null,0]
["010001510000050000",null,null,null,null,null,null,null,null,null,null,null,0]
["              1-84-001009 Сахарная пудра \"Ваниль\" 80г",null,null,null,null,null,null,null,null,null,null,null,0]
["              1-84-071009 Сахарная пудра 80г*5",null,null,null,null,null,null,null,null,null,null,null,0]
["010001510000060000",null,null,null,null,null,null,null,null,null,null,null,0]
["              1-84-003053 Карандаши сахарные 76г",null,null,null,null,null,null,null,null,null,null,null,0]
["010001520000010000",null,null,null,null,null,null,null,null,null,null,null,0]
["              1-84-003051 Глазурь со вкусом лимона,100г",null,null,null,null,null,null,null,null,null,null,null,0]
["              1-84-003052 Глазурь со вкусом марципана,100г",null,null,null,null,null,null,null,null,null,null,null,0]
["              1-84-073052 Глазурь марципан 100г*5",null,null,null,null,null,null,null,null,null,null,null,0]
["010001520000020000",null,null,null,null,null,null,null,null,null,null,null,0]
["              1-84-090804 Глазурь темный шоколад 100г",null,null,null,null,null,null,null,null,null,null,null,0]
["              1-84-091142 Глазурь темный и белый шоколад 100г",null,null,null,null,null,null,null,null,null,null,null,0]
["Смесь для пудинга",null,null,null,null,null,null,null,null,null,null,null,0]
["              1-84-004001 Пудинг ванильный,40г",null,null,null,null,null,null,null,null,null,null,null,0]
["              1-84-004002 Пудинг шоколадный,50г",null,null,null,null,null,null,null,null,null,null,null,0]
["              1-84-004003 Пудинг сливочный,40г",null,null,null,null,null,null,null,null,null,null,null,0]
["              1-84-074001 Пудинг ванильный,40гx5шт.",null,null,null,null,null,null,null,null,null,null,null,0]
["              1-84-074002 Пудинг шоколадный,50гх5шт.",null,null,null,null,null,null,null,null,null,null,null,0]
["              1-84-074003 Пудинг сливочный,40гх5шт.",null,null,null,null,null,null,null,null,null,null,null,0]
["Желе со вкусом ягод",null,null,null,null,null,null,null,null,null,null,null,0]
["              1-84-005001 Желе со вкусом вишни,45г",null,null,null,null,null,null,null,null,null,null,null,0]
["              1-84-005002 Желе со вкусом апельсина,45г",null,null,null,null,null,null,null,null,null,null,null,{"$f":"SUM(B71:L71)","v":0}]
["              1-84-005003 Желе со вкусом клубники,45г",null,null,null,null,null,null,null,null,null,null,null,0]
["              1-84-005004 Желе со вкусом малины,45г",null,null,null,null,null,null,null,null,null,null,null,0]
["              1-84-005005 Желе со вкусом лесной ягоды,45г",null,null,null,null,null,null,null,null,null,null,null,0]
["              1-84-005006 Желе со вкусом лимона,45г",null,null,null,null,null,null,null,null,null,null,null,0]
["              1-84-075004 Желе со вкусом малины,45гх5шт.",null,null,null,null,null,null,null,null,null,null,null,0]
["              1-84-075005 Желе со вкусом лесной ягоды,45г*5",null,null,null,null,null,null,null,null,null,null,null,0]
["              1-84-075006 Желе со вкусом лимона,45г*5",null,null,null,null,null,null,null,null,null,null,null,0]
["              1-84-075101 Желе со вкусом вишни,45гх5шт.",null,null,null,null,null,null,null,null,null,null,null,0]
["Кисель",null,null,null,null,null,null,null,null,null,null,null,0]
["              1-84-006001 Кисель со вкусом вишни,30г",null,null,null,null,null,null,null,null,null,null,null,0]
["              1-84-006002 Кисель со вкусом малины,30г",null,null,null,null,null,null,null,null,null,null,null,0]
["              1-84-006003 Кисель со вкусом клубники,30г",null,null,null,null,null,null,null,null,null,null,null,0]
["              1-84-007001 Кисель \"Ягодник\" клубника,70г",null,null,null,null,null,null,null,null,null,null,null,0]
["              1-84-007002 Кисель \"Ягодник\" лесная ягода,70г",null,null,null,null,null,null,null,null,null,null,null,0]
["              1-84-007003 Кисель \"Ягодник\" вишня,70г",null,null,null,null,null,null,null,null,null,null,null,0]
["              1-84-076001 Кисель со вкусом вишни,30гх5шт.",null,null,null,null,null,null,null,null,null,null,null,0]
["              1-84-076002 Кисель со вкусом малины,30гх5шт",null,null,null,null,null,null,null,null,null,null,null,0]
["              1-84-076003 Кисель со вкусом клубники,30гх5шт.",null,null,null,null,null,null,null,null,null,null,null,0]
["              1-84-077001 Кисель \"Ягодник\" клубника,70г*5",null,null,null,null,null,null,null,null,null,null,null,0]
["              1-84-077002 Кисель \"Ягодник\" лесная ягода,70г*5",null,null,null,null,null,null,null,null,null,null,null,0]
["              1-84-077003 Кисель \"Ягодник\" вишня,70г*5",null,null,null,null,null,null,null,null,null,null,null,0]
["Фирменн. десерт/мусс",null,null,null,null,null,null,null,null,null,null,null,0]
["              1-84-047200 Крем Тирамису 70г",null,null,null,null,null,null,null,null,null,null,null,0]
["Консервaнт",null,null,null,null,null,null,null,null,null,null,null,0]
["              1-84-008003 Консервант (бензоат натрия),7г",null,null,null,null,null,null,null,null,null,null,null,0]
["Желфикс",null,null,null,null,null,null,null,null,null,null,null,0]
["              1-84-008001 Желфикс 2:1 для консервирования,40г",null,null,null,null,null,null,null,null,null,null,null,0]
["              1-84-008002 Желфикс 1:1 для консервирования,20г",null,null,null,null,null,null,null,null,null,null,null,0]
["Прочие средства для",null,null,null,null,null,null,null,null,null,null,null,0]
["              1-84-008004 Кислота лимонная пищевая,8г",null,null,null,null,null,null,null,null,null,null,null,0]
["              1-84-008005 Кислота лимонная пищевая 50г",null,null,null,null,null,null,null,null,null,null,null,0]
["              1-84-078104 Кислота лимонная пищевая,8гх5шт.",null,null,null,null,null,null,null,null,null,null,null,0]
["Виталис Мюсли до 500",null,null,null,null,null,null,null,null,null,null,null,0]
["              1-84-006420 Мюсли фруктовые без сахара,375г",null,null,null,null,null,null,null,null,null,null,null,0]
["              1-84-006421 Мюсли шоколадные,375г",null,null,null,null,null,null,null,null,null,null,null,0]
["              1-84-006424 Мюсли хрустящие с шоколадом,375г",null,null,null,null,null,null,null,null,null,null,null,0]
["              1-84-006425 Мюсли хрустящие,375г",null,null,null,null,null,null,null,null,null,null,null,0]
["              1-84-006428 Мюсли хрустящие с миндалем,375г",null,null,null,null,null,null,null,null,null,null,null,0]
["              1-84-006446 Мюсли хрустящие медовые,375г",null,null,null,null,null,null,null,null,null,null,null,0]
["              1-84-076420 Мюсли фруктовые без сахара,375гх2шт.",null,null,null,null,null,null,null,null,null,null,null,0]
["              1-84-076421 Мюсли шоколадные 375гх2",null,null,null,null,null,null,null,null,null,null,null,0]
["              1-84-076425 Мюсли хрустящие,375гх2шт.",null,null,null,null,null,null,null,null,null,null,null,0]
["              1-84-076428 Мюсли хрустящие с миндалем,375гх2шт.",null,null,null,null,null,null,null,null,null,null,null,0]
["              1-84-076446 Мюсли хрустящие медовые,375гх2шт.",null,null,null,null,null,null,null,null,null,null,null,0]
["Ристоранте",null,null,null,null,null,null,null,null,null,null,null,0]
["              1-20-810100 Пицца Ристоранте Кальцоне Специале,290г",null,null,null,null,null,null,null,null,null,null,null,0]
["              1-20-810200 Пицца Ристоранте Сыр и Помидоры 355г",null,null,null,null,null,null,null,null,null,null,null,0]
["              1-20-818900 Пицца Ристоранте 4 вида сыра,340г",null,null,null,null,null,null,null,null,null,null,null,0]
["              1-20-819000 Пицца Ристоранте с салями,320г",null,null,null,null,null,null,null,null,null,null,null,0]
["              1-20-819100 Пицца Ристоранте с шампиньонами,365г",null,null,null,null,null,null,null,null,null,null,null,0]
["              1-20-819200 Пицца Ристоранте с ветчиной,330г",null,null,null,null,null,null,null,null,null,null,null,0]
["              1-20-819500 Пицца Ристоранте Специале,330г",null,null,null,null,null,null,null,null,null,null,null,0]
["              1-20-819600 Пицца Ристоранте Гавайи,355г",null,null,null,null,null,null,null,null,null,null,null,0]
["              1-20-819800 Пицца Ристоранте Моццарелла,335г",null,null,null,null,null,null,null,null,null,null,null,0]
["              1-20-819900 Пицца Ристоранте вегетарианская,385г",null,null,null,null,null,null,null,null,null,null,null,0]
["              1-20-820200 Пицца Ристоранте Пепперони Салями 320г",null,null,null,null,null,null,null,null,null,null,null,0]
["              1-20-820300 Пицца Ристоранте Болоньезе 375г",null,null,null,null,null,null,null,null,null,null,null,0]
["              1-20-834000 Пицца Ристоранте Пиккола салями 280г",null,null,null,null,null,null,null,null,null,null,null,0]
["              1-20-834200 Пицца Ристоранте Пиккола Моцарелла,310г",null,null,null,null,null,null,null,null,null,null,null,0]
["Каса ди Мама",null,null,null,null,null,null,null,null,null,null,null,0]
["              1-20-205100 Пицца Каса ди Мама \"Ветчина-Грибы\"380г",null,null,null,null,null,null,null,null,null,null,null,0]
["              1-20-205200 Пицца Каса ди Мама \"4вида сыра\"395г",null,null,null,null,null,null,null,null,null,null,null,0]
["              1-20-205300 Пицца Каса ди Мама \"Специале\" 405г",null,null,null,null,null,null,null,null,null,null,null,0]
["              1-20-205400 Пицца Каса ди Мама\"Салями\"380г",null,null,3,null,null,null,null,null,null,null,null,{"$f":"SUM(B135:L135)","v":3}]
["026001090000021000",null,null,null,null,null,null,null,null,null,null,null,0]
["              1-60-901208 Пицца-чка с шампиньонами 285г",null,null,null,null,null,null,null,null,null,null,null,0]

{"sheet":"СВОДНЫЙ","index":2,"n_rows":213,"n_cols":2,"rows_kept":213,"cut":false,"hidden":false,"merged":[]}
["ЯНВ - &CM_RTT01&"]
["Валовый оборот"]
["  "]
["Заказчик","Ф-лы"]
["            1-84-001001 Разрыхлитель теста,10г"]
["              1-84-001201 Разрыхлитель теста,10гх5шт. (60)"]
["              1-84-041534 Разрыхлитель теста,10г (4+1)Metro"]
["              1-84-041535 Разрыхлитель теста,10г (4+1)"]
["              1-84-071734 Разрыхлитель теста,10гх5шт.Юнит"]
["Разрыхлитель теста,10г. ",{"$f":"SUM(B4:B9)","v":0}]
[]
["              1-84-001080 Дрожжи сух.мгновеннодейств. 80 шт."]
[]
["              1-84-044040 Дрожжи хлебоп.сухие7г(4+1)"]
["              1-84-071080 Дрожжи хлебопекарные сухие,7гх5шт."]
["Дрожжи сух.мгновеннодейств. ",{"$f":"SUM(B11:B15)","v":0}]
[]
["              1-84-001008 Сахар Ванильный,8г(50шт)"]
["              1-84-001010 Сахар Ванильный 8г(100шт)"]
["              1-84-001208 Сахар ванильный,8г 60x5"]
["              1-84-045433 Сахар ван.,8гх5 шт(4+1).Metro"]
["              1-84-045434 Сахар ванильный,8г (4+1)"]
["              1-84-071733 Сахар ванильный,8гх5 шт.Юнит"]
["              1-84-001210 Сахар с натуральной Ванилью 15г*2шт"]
["              1-84-010100 Сахар с натуральной ванилью 15г"]
["Ванильный сахар,8г. ",{"$f":"SUM(B17:B25)","v":0}]
[]
["              1-84-001006 Желатин пищевой,10г"]
["              1-84-047041 Желатин пищевой,10г (4+1)"]
["              1-84-047040 Желатин пищевой,10г (4+1)Metro"]
["              1-84-001206 Желатин пищевой,10гх5шт. (33уп)"]
["              1-84-077740 Желатин пищевой,10гх5шт Юнит"]
["              1-84-001013 Желатин 30г"]
["              1-84-001213 Желатин 30гх2"]
["Желатин быстрорастворимый,10г ",{"$f":"SUM(B27:B34)","v":0}]
[]
["              1-84-001004 Желе для торта бесцветное,8г"]
["              1-84-001005 Желе для торта красное,8г"]
["              1-84-071104 Желе для торта бесцветное,8гх5шт."]
["              1-84-071104 Желе для торта красное,8гх5шт."]
[]
[]
["              1-84-001002 Загуститель для сливок,8г"]
["              1-84-077358 Загуститель для сливок,8гх5 шт.Юнит"]
[]
[]
["              1-84-001011 Сахар с корицей 40г"]
[]
["              1-84-001003 Смесь для взбитых сливок 48г"]
["              1-84-072101 Смесь для взбитых сливок,48гх5шт."]
[]
["Всего добавок для выпечки",{"$f":"SUM(B36:B51)","v":0}]
[]
[]
["              1-84-002003 Смесь \"Творопыш\",60г"]
["              1-84-072003 Смесь \"Творопыш\",60гх5шт."]
["              1-84-002001 Крем для торта \"Ванильный\",50г"]
["              1-84-002002 Крем для торта \"Шоколадный\",55г"]
["              1-84-072001 Крем для торта ванильный,50гх5шт."]
["              1-84-072002 Крем для торта шоколадный,55гх5шт."]
[]
[]
[]
[]
["Всего добавок дляторта",{"$f":"SUM(B55:B64)","v":0}]
["              1-84-003053 Карандаши сахарные 76г"]
["              1-84-001012 Посыпка цветная 80г"]
["              1-84-091093 Посыпка Шоколадная 80г"]
["              1-84-003051 Глазурь со вкусом лимона,100г"]
["              1-84-003052 Глазурь со вкусом марципана,100г"]
["              1-84-073052 Глазурь марципан 100г*5"]
["              1-84-091142 Глазурь темный и белый шоколад 100г"]
["              1-84-090804 Глазурь темный шоколад 100г"]
["              1-84-001009 Сахарная пудра \"Ваниль\" 80г"]
["              1-84-071009 Сахарная пудра 80г*5"]
[]
[]
[]
["Всего декор",{"$f":"SUM(B66:B78)","v":0}]
["              1-84-001007 Сода пищевая,50г"]
["              1-84-071007 Сода пищевая,50гх5шт."]
[]
["Всего сода",{"$f":"SUM(B80:B82)","v":0}]
["Всего прочие ингредиенты для выпечки",{"$f":"B83+B79+B65+B52","v":0}]
[]
["              1-84-004001 Пудинг ванильный,40г"]
["              1-84-004002 Пудинг шоколадный,50г"]
["              1-84-004003 Пудинг сливочный,40г"]
["              1-84-004004 Пудинг клубничный,40г"]
["              1-84-004005 Пудинг малиновый,40г"]
["              1-84-004006 Пудинг карамельный,40г"]
["              1-84-074001 Пудинг ванильный,40гx5шт."]
["              1-84-074002 Пудинг шоколадный,50гх5шт."]
["              1-84-074003 Пудинг сливочный,40гх5шт."]
["              1-84-074006 Пудинг карамельный,40гх5шт."]
[]
["Всего пудинги",{"$f":"SUM(B85:B96)","v":0}]
["              1-84-007001 Кисель \"Ягодник\" клубника,70г"]
["              1-84-007002 Кисель \"Ягодник\" лесная ягода,70г"]
["              1-84-007003 Кисель \"Ягодник\" вишня,70г"]
["              1-84-007004 Кисель \"Ягодник\" малина,70г"]
["              1-84-077001 Кисель \"Ягодник\" клубника,70г*5"]
["              1-84-077002 Кисель \"Ягодник\" лесная ягода,70г*5"]
["              1-84-077003 Кисель \"Ягодник\" вишня,70г*5"]
[]
[]
["Всего традиционный кисель",{"$f":"SUM(B98:B106)","v":0}]
["              1-84-006001 Кисель со вкусом вишни,30г"]
["              1-84-006002 Кисель со вкусом малины,30г"]
["              1-84-006003 Кисель со вкусом клубники,30г"]
["              1-84-076001 Кисель со вкусом вишни,30гх5шт."]
["              1-84-076002 Кисель со вкусом малины,30гх5шт"]
["              1-84-076003 Кисель со вкусом клубники,30гх5шт."]
[]
[]
["Всего  кисель Сладкий момент",{"$f":"SUM(B108:B115)","v":0}]
["              1-84-005001 Желе со вкусом вишни,45г"]
["              1-84-005002 Желе со вкусом апельсина,45г"]
["              1-84-005003 Желе со вкусом клубники,45г"]
["              1-84-005004 Желе со вкусом малины,45г"]
["              1-84-005005 Желе со вкусом лесной ягоды,45г"]
["              1-84-005006 Желе со вкусом лимона,45г"]
["              1-84-075003 Желе со вкусом клубники,45гх5шт."]
["              1-84-075004 Желе со вкусом малины,45гх5шт."]
["              1-84-075005 Желе со вкусом лесной ягоды,45г*5"]
["              1-84-075006 Желе со вкусом лимона,45г*5"]
["              1-84-075101 Желе со вкусом вишни,45гх5шт."]
[]
[]
[]
[]
[]
["Всего  желе",{"$f":"SUM(B117:B132)","v":0}]
[]
["              1-84-047200 Крем Тирамису 70г"]
["Другие десерты",{"$f":"SUM(B134:B135)","v":0}]
["Сумма десертов всего",{"$f":"B136+B133+B116+B107+B97","v":0}]
[]
[]
[]
[]
["              1-66-100212 Пикантфикс - кисло-сладкий,100г"]
["              1-66-100213 Пикантфикс - острый,100г"]
["              1-66-100482 Пикантфикс острый 100г*5"]
["              1-66-100496 Пикантфикс кисло-сладкий 100г*5"]
[]
[]
["              1-84-008003 Консервант (бензоат натрия),7г"]
["              1-84-078003 Консервант (бензоат натрия),7гх5шт."]
["              1-84-008004 Кислота лимонная пищевая,8г"]
["              1-84-078104 Кислота лимонная пищевая,8гх5шт."]
["              1-84-008005 Кислота лимонная пищевая 50г"]
["              1-84-008001 Желфикс 2:1 для консервирования,40г"]
["              1-84-008002 Желфикс 1:1 для консервирования,20г"]
["              1-84-008201 Желфикс 2+1х2шт."]
["              1-84-078001 Желфикс 2:1, 40гх5шт."]
["              1-84-078002 Желфикс 1:1, 20гх5шт."]
[]
[]
[]
["Всего  средств для консервирования",{"$f":"SUM(B138:B160)","v":0}]
[]
["              1-84-006420 Мюсли фруктовые без сахара,375г"]
["              1-84-006421 Мюсли шоколадные,375г"]
["              1-84-006423 Мюсли плюс без сахара,375г"]
["              1-84-006424 Мюсли хрустящие с шоколадом,375г"]
["              1-84-006425 Мюсли хрустящие,375г"]
["              1-84-006428 Мюсли хрустящие с миндалем,375г"]
["              1-84-006429 Мюсли хрустящие с банан. Шоколад, 375г"]
["              1-84-006446 Мюсли хрустящие медовые,375г"]
["              1-84-076420 Мюсли фруктовые без сахара,375гх2шт."]
["              1-84-076421 Мюсли шоколадные 375гх2"]
["              1-84-076423 Мюсли плюс без сахара,375гх2шт."]
["              1-84-076425 Мюсли хрустящие,375гх2шт."]
["              1-84-076428 Мюсли хрустящие с миндалем,375гх2шт."]
["              1-84-076429 Мюсли хрустящие с банан.,375гх2шт."]
["              1-84-076446 Мюсли хрустящие медовые,375гх2шт."]
[]
[]
[]
[]
["Всего  Мюсли",{"$f":"SUM(B164:B181)","v":0}]
["Всего  сухие продукты",{"$f":"B182+B161+B137+B84+B35+B26+B16+B10","v":0}]
["              1-20-810100 Пицца Ристоранте Кальцоне Специале,290г"]
["              1-20-810200 Пицца Ристоранте Сыр и Помидоры 355г"]
["              1-20-814800 Пицца\"Ристоранте\"Пиколиссима салями 275г"]
[]
["              1-20-818900 Пицца Ристоранте 4 вида сыра,340г"]
["              1-20-819000 Пицца Ристоранте с салями,320г"]
["              1-20-819100 Пицца Ристоранте с шампиньонами,365г"]
["              1-20-819200 Пицца Ристоранте с ветчиной,330г"]
["              1-20-819500 Пицца Ристоранте Специале,330г"]
["              1-20-819600 Пицца Ристоранте Гавайи,355г"]
["              1-20-819800 Пицца Ристоранте Моццарелла,335г"]
["              1-20-819900 Пицца Ристоранте вегетарианская,385г"]
["              1-20-820200 Пицца Ристоранте Пепперони Салями 320г"]
["              1-20-820300 Пицца Ристоранте Болоньезе 375г"]
["              1-20-834000 Пицца Ристоранте Пиккола салями 280г"]
["              1-20-834200 Пицца Ристоранте Пиккола Моцарелла,310г"]
[]
[]
[]
[]
["Всего  Ристоранте",{"$f":"SUM(B184:B203)","v":0}]
["              1-20-205100 Пицца Каса ди Мама \"Ветчина-Грибы\"380г"]
["              1-20-205200 Пицца Каса ди Мама \"4вида сыра\"395г"]
["              1-20-205300 Пицца Каса ди Мама \"Специале\" 405г"]
["              1-20-205400 Пицца Каса ди Мама\"Салями\"380г"]
[]
[]
["Всего  Каса ди Мама",{"$f":"SUM(B205:B210)","v":0}]
["Всего  Замороженные продукты",{"$f":"B211+B204","v":0}]
["ИТОГ",{"$f":"B212+B183","v":0}]

{"sheet":"ГородХ","index":3,"n_rows":23,"n_cols":2,"rows_kept":23,"cut":false,"hidden":false,"merged":[]}
[]
["Название города"]
["  "]
["Заказчик","Ф-лы"]
["Разрыхлитель теста,10г. ",{"$f":"IFERROR(HLOOKUP(B$4,СВОДНЫЙ!$B$4:$DE$23,2,FALSE),)","v":0}]
["Дрожжи сух.мгновеннодейств. ",{"$f":"IFERROR(HLOOKUP(B$4,СВОДНЫЙ!$B$4:$DE$23,3,FALSE),)","v":0}]
["Ванильный сахар,8г. ",{"$f":"IFERROR(HLOOKUP(B$4,СВОДНЫЙ!$B$4:$DE$23,4,FALSE),)","v":0}]
["Желатин быстрорастворимый,10г ",{"$f":"IFERROR(HLOOKUP(B$4,СВОДНЫЙ!$B$4:$DE$23,5,FALSE),)","v":0}]
["Прочие ингредиенты для выпечки",{"$f":"IFERROR(HLOOKUP(B$4,СВОДНЫЙ!$B$4:$DE$23,6,FALSE),)","v":0}]
["Всего ингредиенты для выпечки",{"$f":"IFERROR(HLOOKUP(B$4,СВОДНЫЙ!$B$4:$DE$23,7,FALSE),)","v":0}]
["Всего пудинги",{"$f":"IFERROR(HLOOKUP(B$4,СВОДНЫЙ!$B$4:$DE$23,8,FALSE),)","v":0}]
["Всего трад. кисель",{"$f":"IFERROR(HLOOKUP(B$4,СВОДНЫЙ!$B$4:$DE$23,9,FALSE),)","v":0}]
["Всего кисель \"Сладкий Момент\"",{"$f":"IFERROR(HLOOKUP(B$4,СВОДНЫЙ!$B$4:$DE$23,10,FALSE),)","v":0}]
["Всего желе",{"$f":"IFERROR(HLOOKUP(B$4,СВОДНЫЙ!$B$4:$DE$23,11,FALSE),)","v":0}]
["Другие десерты",{"$f":"IFERROR(HLOOKUP(B$4,СВОДНЫЙ!$B$4:$DE$23,12,FALSE),)","v":0}]
["Сумма Десертов всего",{"$f":"IFERROR(HLOOKUP(B$4,СВОДНЫЙ!$B$4:$DE$23,13,FALSE),)","v":0}]
["Всего средства для консервир-я",{"$f":"IFERROR(HLOOKUP(B$4,СВОДНЫЙ!$B$4:$DE$23,14,FALSE),)","v":0}]
["Всего Виталис",{"$f":"IFERROR(HLOOKUP(B$4,СВОДНЫЙ!$B$4:$DE$23,15,FALSE),)","v":0}]
["Всего сухие продукты",{"$f":"IFERROR(HLOOKUP(B$4,СВОДНЫЙ!$B$4:$DE$23,16,FALSE),)","v":0}]
["Всего пицца \"Ристоранте\"",{"$f":"IFERROR(HLOOKUP(B$4,СВОДНЫЙ!$B$4:$DE$23,17,FALSE),)","v":0}]
["Всего Каса ди Мама",{"$f":"IFERROR(HLOOKUP(B$4,СВОДНЫЙ!$B$4:$DE$23,18,FALSE),)","v":0}]
["Всего заморож. продукты",{"$f":"IFERROR(HLOOKUP(B$4,СВОДНЫЙ!$B$4:$DE$23,19,FALSE),)","v":0}]
["Итог по всему ассортименту",{"$f":"IFERROR(HLOOKUP(B$4,СВОДНЫЙ!$B$4:$DE$23,20,FALSE),)","v":0}]